[Event "Titled Tuesday Blitz June 20 Early 2023"]
[White "Lamard, Guillaume"]
[Black "Papayan, Oleg"]
[WhiteFideId "600261"]
[BlackFideId "4193911"]
[WhiteElo "2413"]
[BlackElo "2167"]
[Result "1-0"]
[Round "5"]
[TimeControl "180+2"]
[Date "2023.06.20"]
[WhiteClock "0:00:17"]
[BlackClock "0:00:00"]
[Board "98"]

1. e4 {[%clk 0:03:00]}  e5 {[%clk 0:02:58]} 2. Nf3 {[%clk 0:03:00]}  Nc6 {[%clk 0:02:58]} 3. Bb5 {[%clk 0:03:00]}  Nf6 {[%clk 0:02:57]} 4. d3 {[%clk 0:03:00]}  Bc5 {[%clk 0:02:57]} 5. Bxc6 {[%clk 0:02:59]}  dxc6 {[%clk 0:02:56]} 6. Qe2 {[%clk 0:02:59]}  Qe7 {[%clk 0:02:54]} 7. Nbd2 {[%clk 0:02:57]}  Bg4 {[%clk 0:02:51]} 8. h3 {[%clk 0:02:56]}  Bh5 {[%clk 0:02:50]} 9. g4 {[%clk 0:02:56]}  Bg6 {[%clk 0:02:50]} 10. Nc4 {[%clk 0:02:56]}  Nd7 {[%clk 0:02:49]} 11. a3 {[%clk 0:02:56]}  a5 {[%clk 0:02:47]} 12. Ne3 {[%clk 0:02:31]}  f6 {[%clk 0:02:42]} 13. Nf5 {[%clk 0:02:30]}  Qf8 {[%clk 0:02:05]} 14. h4 {[%clk 0:02:29]}  h5 {[%clk 0:02:02]} 15. g5 {[%clk 0:02:16]}  fxg5 {[%clk 0:01:57]} 16. Bxg5 {[%clk 0:02:16]}  Bxf5 {[%clk 0:01:53]} 17. exf5 {[%clk 0:02:15]}  Qxf5 {[%clk 0:01:54]} 18. d4 {[%clk 0:02:11]}  e4 {[%clk 0:01:37]} 19. dxc5 {[%clk 0:02:03]}  Qxf3 {[%clk 0:01:37]} 20. Qxf3 {[%clk 0:02:03]}  exf3 {[%clk 0:01:37]} 21. O-O-O {[%clk 0:02:03]}  Nxc5 {[%clk 0:01:15]} 22. Rd4 {[%clk 0:01:38]}  O-O {[%clk 0:01:05]} 23. Rg1 {[%clk 0:01:26]}  Rae8 {[%clk 0:00:54]} 24. b4 {[%clk 0:01:19]}  axb4 {[%clk 0:00:53]} 25. axb4 {[%clk 0:01:18]}  Ne6 {[%clk 0:00:53]} 26. Rd7 {[%clk 0:01:10]}  Rf7 {[%clk 0:00:53]} 27. Rxf7 {[%clk 0:01:06]}  Kxf7 {[%clk 0:00:53]} 28. Be3 {[%clk 0:01:07]}  Ke7 {[%clk 0:00:42]} 29. Kb2 {[%clk 0:01:04]}  Rf8 {[%clk 0:00:41]} 30. Ra1 {[%clk 0:01:01]}  Rf5 {[%clk 0:00:30]} 31. Ra7 {[%clk 0:00:57]}  b5 {[%clk 0:00:30]} 32. Ra8 {[%clk 0:00:56]}  Nf4 {[%clk 0:00:20]} 33. Rg8 {[%clk 0:00:48]}  Kf7 {[%clk 0:00:20]} 34. Rc8 {[%clk 0:00:48]}  Nd5 {[%clk 0:00:20]} 35. Bc5 {[%clk 0:00:47]}  Rf4 {[%clk 0:00:19]} 36. Rf8+ {[%clk 0:00:30]}  Ke6 {[%clk 0:00:17]} 37. Re8+ {[%clk 0:00:28]}  Kf7 {[%clk 0:00:17]} 38. Rf8+ {[%clk 0:00:28]}  Kg6 {[%clk 0:00:18]} 39. Re8 {[%clk 0:00:27]}  Rxh4 {[%clk 0:00:18]} 40. Re6+ {[%clk 0:00:28]}  Kf5 {[%clk 0:00:17]} 41. Rxc6 {[%clk 0:00:28]}  g5 {[%clk 0:00:16]} 42. Rh6 {[%clk 0:00:27]}  g4 {[%clk 0:00:15]} 43. Kc1 {[%clk 0:00:20]}  Rh2 {[%clk 0:00:15]} 44. Kd2 {[%clk 0:00:21]}  h4 {[%clk 0:00:15]} 45. Kd3 {[%clk 0:00:21]}  g3 {[%clk 0:00:15]} 46. fxg3 {[%clk 0:00:19]}  hxg3 {[%clk 0:00:00]} 47. Ra6 {[%clk 0:00:17]} 1-0


[Site "https://www.chess.com"]

[Event "Titled Tuesday Blitz June 20 Early 2023"]
[White "Bettalli, Francesco"]
[Black "Arabidze, Meri"]
[WhiteFideId "2816453"]
[BlackFideId "13604040"]
[WhiteElo "2216"]
[BlackElo "2405"]
[Result "0-1"]
[Round "5"]
[TimeControl "180+2"]
[Date "2023.06.20"]
[WhiteClock "0:00:27"]
[BlackClock "0:00:09"]
[Board "102"]

1. d4 {[%clk 0:03:00]}  f5 {[%clk 0:02:55]} 2. g4 {[%clk 0:03:00]}  d5 {[%clk 0:02:54]} 3. gxf5 {[%clk 0:03:00]}  Bxf5 {[%clk 0:02:54]} 4. Nc3 {[%clk 0:03:01]}  Nc6 {[%clk 0:02:53]} 5. Nf3 {[%clk 0:03:00]}  e6 {[%clk 0:02:52]} 6. h4 {[%clk 0:02:51]}  Bb4 {[%clk 0:02:51]} 7. e3 {[%clk 0:02:51]}  Nf6 {[%clk 0:02:49]} 8. Bd3 {[%clk 0:02:50]}  Ne4 {[%clk 0:02:48]} 9. Bd2 {[%clk 0:02:47]}  Bxc3 {[%clk 0:02:44]} 10. Bxc3 {[%clk 0:02:45]}  Nxc3 {[%clk 0:02:43]} 11. bxc3 {[%clk 0:02:46]}  O-O {[%clk 0:02:43]} 12. Ng5 {[%clk 0:02:35]}  Qf6 {[%clk 0:02:39]} 13. Bxf5 {[%clk 0:02:30]}  Qxf5 {[%clk 0:02:38]} 14. Qe2 {[%clk 0:02:31]}  e5 {[%clk 0:02:36]} 15. O-O-O {[%clk 0:02:30]}  exd4 {[%clk 0:02:29]} 16. cxd4 {[%clk 0:02:27]}  Qxf2 {[%clk 0:02:19]} 17. Qh5 {[%clk 0:02:21]}  h6 {[%clk 0:02:09]} 18. Qg6 {[%clk 0:02:02]}  Qf5 {[%clk 0:01:48]} 19. Qxf5 {[%clk 0:01:52]}  Rxf5 {[%clk 0:01:49]} 20. Ne6 {[%clk 0:01:52]}  Re8 {[%clk 0:01:48]} 21. Nxc7 {[%clk 0:01:51]}  Rxe3 {[%clk 0:01:47]} 22. Nb5 {[%clk 0:01:51]}  Rf4 {[%clk 0:01:39]} 23. c3 {[%clk 0:01:28]}  a6 {[%clk 0:01:39]} 24. Nc7 {[%clk 0:01:17]}  Rxc3+ {[%clk 0:01:38]} 25. Kb2 {[%clk 0:01:17]}  Rg3 {[%clk 0:01:32]} 26. Nxd5 {[%clk 0:01:18]}  Rf2+ {[%clk 0:01:30]} 27. Ka1 {[%clk 0:01:18]}  Rgg2 {[%clk 0:01:28]} 28. Nc3 {[%clk 0:01:15]}  Rc2 {[%clk 0:01:24]} 29. Rc1 {[%clk 0:01:15]}  Nxd4 {[%clk 0:01:23]} 30. Rxc2 {[%clk 0:01:15]}  Nxc2+ {[%clk 0:01:23]} 31. Kb2 {[%clk 0:01:14]}  Nd4+ {[%clk 0:01:22]} 32. Ka3 {[%clk 0:01:14]}  Rg3 {[%clk 0:01:20]} 33. Kb4 {[%clk 0:01:14]}  b5 {[%clk 0:01:13]} 34. Nd5 {[%clk 0:01:11]}  Nc2+ {[%clk 0:01:13]} 35. Kc5 {[%clk 0:01:10]}  Ne3 {[%clk 0:01:03]} 36. Ne7+ {[%clk 0:01:08]}  Kf7 {[%clk 0:01:02]} 37. Nc6 {[%clk 0:01:08]}  Nc4 {[%clk 0:01:00]} 38. a4 {[%clk 0:01:08]}  Na3 {[%clk 0:00:52]} 39. a5 {[%clk 0:01:07]}  Nc4 {[%clk 0:00:50]} 40. Ra1 {[%clk 0:01:02]}  Rg4 {[%clk 0:00:39]} 41. Nb8 {[%clk 0:01:02]}  Rxh4 {[%clk 0:00:35]} 42. Nxa6 {[%clk 0:01:02]}  Rh5+ {[%clk 0:00:35]} 43. Kd4 {[%clk 0:01:02]}  Rh4+ {[%clk 0:00:30]} 44. Kc5 {[%clk 0:01:02]}  Rh5+ {[%clk 0:00:30]} 45. Kd4 {[%clk 0:01:02]}  Ne5 {[%clk 0:00:23]} 46. Nc7 {[%clk 0:01:00]}  Nc6+ {[%clk 0:00:22]} 47. Ke4 {[%clk 0:00:59]}  b4 {[%clk 0:00:20]} 48. a6 {[%clk 0:00:58]}  b3 {[%clk 0:00:19]} 49. Kd3 {[%clk 0:00:47]}  b2 {[%clk 0:00:14]} 50. Rf1+ {[%clk 0:00:47]}  Kg8 {[%clk 0:00:13]} 51. Kc2 {[%clk 0:00:46]}  Rh2+ {[%clk 0:00:12]} 52. Kb1 {[%clk 0:00:46]}  h5 {[%clk 0:00:13]} 53. Nd5 {[%clk 0:00:44]}  Kh7 {[%clk 0:00:11]} 54. Rg1 {[%clk 0:00:43]}  h4 {[%clk 0:00:11]} 55. Rg4 {[%clk 0:00:31]}  Kh6 {[%clk 0:00:06]} 56. Nb4 {[%clk 0:00:27]}  Na7 {[%clk 0:00:06]} 57. Nd3 {[%clk 0:00:27]}  g5 {[%clk 0:00:06]} 58. Rb4 {[%clk 0:00:26]}  Kh5 {[%clk 0:00:06]} 59. Ne5 {[%clk 0:00:23]}  Re2 {[%clk 0:00:04]} 60. Nf3 {[%clk 0:00:20]}  h3 {[%clk 0:00:04]} 61. Rb7 {[%clk 0:00:20]}  Kg4 {[%clk 0:00:04]} 62. Nxg5 {[%clk 0:00:17]}  Kxg5 {[%clk 0:00:03]} 63. Rxa7 {[%clk 0:00:18]}  h2 {[%clk 0:00:03]} 64. Rh7 {[%clk 0:00:19]}  Kg6 {[%clk 0:00:02]} 65. a7 {[%clk 0:00:19]}  Kxh7 {[%clk 0:00:02]} 66. a8=Q {[%clk 0:00:20]}  Re1+ {[%clk 0:00:02]} 67. Kxb2 {[%clk 0:00:21]}  h1=Q {[%clk 0:00:03]} 68. Qa7+ {[%clk 0:00:21]}  Kg6 {[%clk 0:00:03]} 69. Qb6+ {[%clk 0:00:20]}  Kg5 {[%clk 0:00:04]} 70. Qa5+ {[%clk 0:00:20]}  Kf4 {[%clk 0:00:04]} 71. Qb4+ {[%clk 0:00:20]}  Qe4 {[%clk 0:00:04]} 72. Qf8+ {[%clk 0:00:21]}  Qf5 {[%clk 0:00:03]} 73. Qb4+ {[%clk 0:00:21]}  Re4 {[%clk 0:00:04]} 74. Qd2+ {[%clk 0:00:22]}  Ke5 {[%clk 0:00:03]} 75. Qa5+ {[%clk 0:00:21]}  Kf6 {[%clk 0:00:04]} 76. Qb6+ {[%clk 0:00:21]}  Kg5 {[%clk 0:00:04]} 77. Qg1+ {[%clk 0:00:22]}  Rg4 {[%clk 0:00:04]} 78. Qe3+ {[%clk 0:00:22]}  Qf4 {[%clk 0:00:04]} 79. Qe7+ {[%clk 0:00:22]}  Kf5 {[%clk 0:00:03]} 80. Qd7+ {[%clk 0:00:22]}  Ke4 {[%clk 0:00:04]} 81. Qa4+ {[%clk 0:00:21]}  Kf3 {[%clk 0:00:04]} 82. Qb3+ {[%clk 0:00:21]}  Kg2 {[%clk 0:00:04]} 83. Qd5+ {[%clk 0:00:20]}  Qf3 {[%clk 0:00:05]} 84. Qe5 {[%clk 0:00:19]}  Qf2+ {[%clk 0:00:05]} 85. Kc3 {[%clk 0:00:19]}  Qg3+ {[%clk 0:00:05]} 86. Qxg3+ {[%clk 0:00:18]}  Rxg3+ {[%clk 0:00:06]} 87. Kd4 {[%clk 0:00:19]}  Kf3 {[%clk 0:00:06]} 88. Ke5 {[%clk 0:00:19]}  Rg4 {[%clk 0:00:07]} 89. Kd6 {[%clk 0:00:20]}  Re4 {[%clk 0:00:07]} 90. Kc6 {[%clk 0:00:21]}  Kf4 {[%clk 0:00:08]} 91. Kd7 {[%clk 0:00:22]}  Ke5 {[%clk 0:00:08]} 92. Kc7 {[%clk 0:00:23]}  Kd5 {[%clk 0:00:08]} 93. Kb6 {[%clk 0:00:23]}  Re6+ {[%clk 0:00:09]} 94. Kc7 {[%clk 0:00:24]}  Rd6 {[%clk 0:00:09]} 95. Kb7 {[%clk 0:00:25]}  Rc6 {[%clk 0:00:09]} 96. Kb8 {[%clk 0:00:25]}  Kc5 {[%clk 0:00:09]} 97. Ka8 {[%clk 0:00:25]}  Kb6 {[%clk 0:00:08]} 98. Kb8 {[%clk 0:00:26]}  Rc7 {[%clk 0:00:08]} 99. Ka8 {[%clk 0:00:27]}  Rc8# {[%clk 0:00:09]} 0-1


[Site "https://www.chess.com"]

[Event "Titled Tuesday Blitz June 20 Early 2023"]
[White "Vlassov, Nikolai"]
[Black "Rohde, Michael"]
[WhiteFideId "4103360"]
[BlackFideId "2000172"]
[WhiteElo "2324"]
[BlackElo "2274"]
[Result "0-1"]
[Round "5"]
[TimeControl "180+2"]
[Date "2023.06.20"]
[WhiteClock "0:00:00"]
[BlackClock "0:00:07"]
[Board "104"]

1. e4 {[%clk 0:03:00]}  c5 {[%clk 0:02:59]} 2. c3 {[%clk 0:03:00]}  Nf6 {[%clk 0:02:57]} 3. e5 {[%clk 0:03:00]}  Nd5 {[%clk 0:02:58]} 4. d4 {[%clk 0:03:00]}  cxd4 {[%clk 0:02:58]} 5. cxd4 {[%clk 0:03:00]}  e6 {[%clk 0:02:57]} 6. Nc3 {[%clk 0:03:00]}  d6 {[%clk 0:02:53]} 7. f4 {[%clk 0:02:59]}  Be7 {[%clk 0:02:41]} 8. Nf3 {[%clk 0:02:58]}  Nc6 {[%clk 0:02:35]} 9. Bd3 {[%clk 0:02:58]}  Nxc3 {[%clk 0:02:15]} 10. bxc3 {[%clk 0:02:58]}  b6 {[%clk 0:02:09]} 11. O-O {[%clk 0:02:49]}  Bb7 {[%clk 0:02:08]} 12. f5 {[%clk 0:02:48]}  exf5 {[%clk 0:02:06]} 13. Bxf5 {[%clk 0:02:41]}  dxe5 {[%clk 0:02:06]} 14. d5 {[%clk 0:02:25]}  Bc5+ {[%clk 0:02:05]} 15. Kh1 {[%clk 0:02:26]}  Ne7 {[%clk 0:02:05]} 16. Qa4+ {[%clk 0:02:26]}  Kf8 {[%clk 0:02:01]} 17. Ng5 {[%clk 0:00:58]}  Nxf5 {[%clk 0:01:40]} 18. Rxf5 {[%clk 0:00:38]}  Qxd5 {[%clk 0:01:36]} 19. Rxf7+ {[%clk 0:00:25]}  Kg8 {[%clk 0:01:35]} 20. Qg4 {[%clk 0:00:23]}  h6 {[%clk 0:00:45]} 21. Rd7 {[%clk 0:00:20]}  Qxg2+ {[%clk 0:00:34]} 22. Qxg2 {[%clk 0:00:19]}  Bxg2+ {[%clk 0:00:33]} 23. Kxg2 {[%clk 0:00:20]}  hxg5 {[%clk 0:00:33]} 24. Bxg5 {[%clk 0:00:20]}  Kh7 {[%clk 0:00:28]} 25. Rf1 {[%clk 0:00:19]}  Rhf8 {[%clk 0:00:26]} 26. Rxf8 {[%clk 0:00:19]}  Rxf8 {[%clk 0:00:25]} 27. Rxa7 {[%clk 0:00:19]}  Rf2+ {[%clk 0:00:23]} 28. Kg3 {[%clk 0:00:19]}  Rc2 {[%clk 0:00:22]} 29. Bf6 {[%clk 0:00:18]}  Rxc3+ {[%clk 0:00:21]} 30. Kg4 {[%clk 0:00:18]}  Kg6 {[%clk 0:00:19]} 31. Bxe5 {[%clk 0:00:17]}  Rc4+ {[%clk 0:00:18]} 32. Kf3 {[%clk 0:00:17]}  Kf5 {[%clk 0:00:16]} 33. Bxg7 {[%clk 0:00:17]}  Rh4 {[%clk 0:00:16]} 34. Kg3 {[%clk 0:00:15]}  Rh7 {[%clk 0:00:14]} 35. h4 {[%clk 0:00:10]}  Bd6+ {[%clk 0:00:13]} 36. Kf3 {[%clk 0:00:10]}  Be5 {[%clk 0:00:13]} 37. Rf7+ {[%clk 0:00:07]}  Ke6 {[%clk 0:00:11]} 38. Bxe5 {[%clk 0:00:06]}  Rxf7+ {[%clk 0:00:11]} 39. Bf4 {[%clk 0:00:06]}  Kf5 {[%clk 0:00:10]} 40. h5 {[%clk 0:00:05]}  Ra7 {[%clk 0:00:10]} 41. h6 {[%clk 0:00:05]}  Ra3+ {[%clk 0:00:09]} 42. Be3 {[%clk 0:00:05]}  Kg6 {[%clk 0:00:08]} 43. Ke4 {[%clk 0:00:05]}  b5 {[%clk 0:00:07]} 44. Kd4 {[%clk 0:00:02]}  Rxa2 {[%clk 0:00:07]} 45. Kc5 {[%clk 0:00:00]}  Rb2 {[%clk 0:00:07]} 0-1


[Site "https://www.chess.com"]

[Event "Titled Tuesday Blitz June 20 Early 2023"]
[White "Womacka, Mathias"]
[Black "Srdanovic, Jovana"]
[WhiteFideId "4611390"]
[BlackFideId "954810"]
[WhiteElo "2377"]
[BlackElo "2155"]
[Result "1-0"]
[Round "5"]
[TimeControl "180+2"]
[Date "2023.06.20"]
[WhiteClock "0:00:39"]
[BlackClock "0:00:09"]
[Board "107"]

1. e4 {[%clk 0:02:50]}  e5 {[%clk 0:02:53]} 2. Nf3 {[%clk 0:02:49]}  Nc6 {[%clk 0:02:52]} 3. Bb5 {[%clk 0:02:48]}  a6 {[%clk 0:02:51]} 4. Bxc6 {[%clk 0:02:48]}  dxc6 {[%clk 0:02:52]} 5. O-O {[%clk 0:02:48]}  Bd6 {[%clk 0:02:47]} 6. d4 {[%clk 0:02:47]}  f6 {[%clk 0:02:40]} 7. dxe5 {[%clk 0:02:44]}  fxe5 {[%clk 0:02:40]} 8. Nxe5 {[%clk 0:02:39]}  Nf6 {[%clk 0:02:05]} 9. Nf3 {[%clk 0:02:37]}  Bc5 {[%clk 0:01:34]} 10. Qxd8+ {[%clk 0:02:30]}  Kxd8 {[%clk 0:01:35]} 11. Nc3 {[%clk 0:02:21]}  Bg4 {[%clk 0:01:22]} 12. Bf4 {[%clk 0:02:13]}  Bb6 {[%clk 0:01:08]} 13. Rad1+ {[%clk 0:02:01]}  Ke7 {[%clk 0:01:07]} 14. Na4 {[%clk 0:01:47]}  Rac8 {[%clk 0:00:43]} 15. Nxb6 {[%clk 0:01:43]}  cxb6 {[%clk 0:00:44]} 16. Rd3 {[%clk 0:01:36]}  Kf7 {[%clk 0:00:32]} 17. Ne5+ {[%clk 0:01:29]}  Ke7 {[%clk 0:00:16]} 18. Nxg4 {[%clk 0:01:29]}  Nxg4 {[%clk 0:00:16]} 19. Rfd1 {[%clk 0:01:27]}  Nf6 {[%clk 0:00:15]} 20. Bg5 {[%clk 0:01:20]}  h6 {[%clk 0:00:15]} 21. Rd7+ {[%clk 0:01:16]}  Ke6 {[%clk 0:00:15]} 22. Bxf6 {[%clk 0:01:11]}  Kxf6 {[%clk 0:00:15]} 23. Rxb7 {[%clk 0:01:11]}  Rhd8 {[%clk 0:00:14]} 24. Rdd7 {[%clk 0:01:07]}  Rxd7 {[%clk 0:00:12]} 25. Rxd7 {[%clk 0:01:06]}  b5 {[%clk 0:00:11]} 26. f4 {[%clk 0:00:56]}  g6 {[%clk 0:00:09]} 27. Kf2 {[%clk 0:00:56]}  a5 {[%clk 0:00:09]} 28. Ke3 {[%clk 0:00:51]}  c5 {[%clk 0:00:09]} 29. e5+ {[%clk 0:00:46]}  Ke6 {[%clk 0:00:08]} 30. Rd6+ {[%clk 0:00:44]}  Kf5 {[%clk 0:00:09]} 31. Kf3 {[%clk 0:00:40]}  h5 {[%clk 0:00:09]} 32. Rf6# {[%clk 0:00:39]} 1-0


[Site "https://www.chess.com"]

[Event "Titled Tuesday Blitz June 20 Early 2023"]
[White "Arencibia Monduy, Antonio"]
[Black "Gomez Barrera, Javiera Belen"]
[WhiteFideId "3507939"]
[BlackFideId "3418723"]
[WhiteElo "2590"]
[BlackElo "2119"]
[Result "0-1"]
[Round "5"]
[TimeControl "180+2"]
[Date "2023.06.20"]
[WhiteClock "0:00:00"]
[BlackClock "0:01:18"]
[Board "110"]

1. e4 {[%clk 0:03:00]}  d6 {[%clk 0:02:55]} 2. d4 {[%clk 0:03:00]}  Nf6 {[%clk 0:02:55]} 3. Nc3 {[%clk 0:03:00]}  e5 {[%clk 0:02:55]} 4. h3 {[%clk 0:02:59]}  exd4 {[%clk 0:02:38]} 5. Qxd4 {[%clk 0:02:56]}  Nc6 {[%clk 0:02:38]} 6. Qd1 {[%clk 0:02:49]}  g6 {[%clk 0:02:38]} 7. Nf3 {[%clk 0:02:48]}  Bg7 {[%clk 0:02:39]} 8. Bc4 {[%clk 0:02:42]}  O-O {[%clk 0:02:39]} 9. O-O {[%clk 0:02:42]}  Ne5 {[%clk 0:02:37]} 10. Nxe5 {[%clk 0:02:38]}  dxe5 {[%clk 0:02:38]} 11. Qe2 {[%clk 0:02:37]}  c6 {[%clk 0:02:38]} 12. Be3 {[%clk 0:02:33]}  b5 {[%clk 0:02:34]} 13. Bd3 {[%clk 0:02:19]}  Be6 {[%clk 0:02:29]} 14. Bc5 {[%clk 0:02:12]}  Re8 {[%clk 0:02:29]} 15. Rad1 {[%clk 0:01:57]}  Qc7 {[%clk 0:02:28]} 16. a3 {[%clk 0:01:33]}  Nh5 {[%clk 0:02:19]} 17. Qf3 {[%clk 0:01:29]}  Nf4 {[%clk 0:02:05]} 18. Ne2 {[%clk 0:01:28]}  Nxd3 {[%clk 0:02:02]} 19. Qxd3 {[%clk 0:01:27]}  Rad8 {[%clk 0:01:58]} 20. Qe3 {[%clk 0:01:27]}  Rxd1 {[%clk 0:01:56]} 21. Rxd1 {[%clk 0:01:26]}  Rd8 {[%clk 0:01:52]} 22. Rxd8+ {[%clk 0:01:05]}  Qxd8 {[%clk 0:01:53]} 23. Nc3 {[%clk 0:00:53]}  a6 {[%clk 0:01:50]} 24. Qd3 {[%clk 0:00:38]}  Qg5 {[%clk 0:01:40]} 25. Be3 {[%clk 0:00:35]}  Qe7 {[%clk 0:01:39]} 26. Qd2 {[%clk 0:00:31]}  h5 {[%clk 0:01:37]} 27. Bg5 {[%clk 0:00:29]}  Qc5 {[%clk 0:01:27]} 28. Qd8+ {[%clk 0:00:28]}  Kh7 {[%clk 0:01:27]} 29. Be3 {[%clk 0:00:28]}  Qf8 {[%clk 0:01:22]} 30. Qc7 {[%clk 0:00:26]}  Qc8 {[%clk 0:01:22]} 31. Qe7 {[%clk 0:00:00]}  Qd7 {[%clk 0:01:18]} 0-1


[Site "https://www.chess.com"]

[Event "Titled Tuesday Blitz June 20 Early 2023"]
[White "Prydun, Andriy"]
[Black "Bodnaruk, Anastasia"]
[WhiteFideId "14145898"]
[BlackFideId "4181751"]
[WhiteElo "2164"]
[BlackElo "2304"]
[Result "0-1"]
[Round "5"]
[TimeControl "180+2"]
[Date "2023.06.20"]
[WhiteClock "0:00:00"]
[BlackClock "0:00:37"]
[Board "112"]

1. e4 {[%clk 0:03:00]}  c5 {[%clk 0:02:59]} 2. Nf3 {[%clk 0:02:59]}  d6 {[%clk 0:03:00]} 3. c3 {[%clk 0:02:59]}  Nf6 {[%clk 0:02:59]} 4. h3 {[%clk 0:02:59]}  Nbd7 {[%clk 0:02:55]} 5. Bd3 {[%clk 0:02:55]}  b6 {[%clk 0:02:53]} 6. O-O {[%clk 0:02:53]}  Bb7 {[%clk 0:02:54]} 7. Re1 {[%clk 0:02:53]}  e6 {[%clk 0:02:49]} 8. Bc2 {[%clk 0:02:40]}  Be7 {[%clk 0:02:48]} 9. d4 {[%clk 0:02:40]}  O-O {[%clk 0:02:41]} 10. Bf4 {[%clk 0:02:38]}  Rc8 {[%clk 0:02:25]} 11. Nbd2 {[%clk 0:02:37]}  cxd4 {[%clk 0:02:20]} 12. cxd4 {[%clk 0:02:37]}  b5 {[%clk 0:02:13]} 13. Rc1 {[%clk 0:02:12]}  Nb6 {[%clk 0:02:12]} 14. Bd3 {[%clk 0:02:07]}  a6 {[%clk 0:01:59]} 15. Rb1 {[%clk 0:01:30]}  Nc4 {[%clk 0:01:52]} 16. Nxc4 {[%clk 0:01:10]}  bxc4 {[%clk 0:01:52]} 17. Bc2 {[%clk 0:01:10]}  Qb6 {[%clk 0:01:41]} 18. Bd2 {[%clk 0:00:59]}  d5 {[%clk 0:01:32]} 19. e5 {[%clk 0:00:58]}  Ne4 {[%clk 0:01:32]} 20. Bc3 {[%clk 0:00:52]}  f5 {[%clk 0:01:23]} 21. exf6 {[%clk 0:00:49]}  Bxf6 {[%clk 0:01:22]} 22. Bxe4 {[%clk 0:00:32]}  dxe4 {[%clk 0:01:22]} 23. Ne5 {[%clk 0:00:33]}  Bxe5 {[%clk 0:01:22]} 24. dxe5 {[%clk 0:00:34]}  Qxf2+ {[%clk 0:01:17]} 25. Kh1 {[%clk 0:00:34]}  e3 {[%clk 0:01:16]} 26. Qg4 {[%clk 0:00:31]}  Rf4 {[%clk 0:00:53]} 27. Qxe6+ {[%clk 0:00:30]}  Kh8 {[%clk 0:00:53]} 28. Rg1 {[%clk 0:00:21]}  Qg3 {[%clk 0:00:43]} 29. Rbd1 {[%clk 0:00:14]}  Rcf8 {[%clk 0:00:40]} 30. Rd6 {[%clk 0:00:05]}  Bxg2+ {[%clk 0:00:37]} 31. Rxg2 {[%clk 0:00:00]}  Rf1+ {[%clk 0:00:37]} 0-1


[Site "https://www.chess.com"]

[Event "Titled Tuesday Blitz June 20 Early 2023"]
[White "Sai Han Thiha"]
[Black "Adla, Diego"]
[WhiteFideId "13012290"]
[BlackFideId "100072"]
[WhiteElo "1953"]
[BlackElo "2377"]
[Result "0-1"]
[Round "5"]
[TimeControl "180+2"]
[Date "2023.06.20"]
[WhiteClock "0:02:17"]
[BlackClock "0:01:45"]
[Board "113"]

1. d4 {[%clk 0:03:00]}  Nf6 {[%clk 0:02:59]} 2. c4 {[%clk 0:03:01]}  e6 {[%clk 0:02:59]} 3. Nf3 {[%clk 0:03:01]}  d5 {[%clk 0:02:58]} 4. Nc3 {[%clk 0:03:02]}  Bb4 {[%clk 0:02:56]} 5. Qa4+ {[%clk 0:03:01]}  Nc6 {[%clk 0:02:55]} 6. cxd5 {[%clk 0:03:02]}  exd5 {[%clk 0:02:55]} 7. Bg5 {[%clk 0:03:03]}  O-O {[%clk 0:02:53]} 8. e3 {[%clk 0:03:03]}  h6 {[%clk 0:02:46]} 9. Bxf6 {[%clk 0:03:03]}  Qxf6 {[%clk 0:02:46]} 10. Be2 {[%clk 0:03:04]}  Bd6 {[%clk 0:02:39]} 11. Nxd5 {[%clk 0:03:00]}  Qg6 {[%clk 0:02:38]} 12. O-O {[%clk 0:02:52]}  Bd7 {[%clk 0:02:01]} 13. Qd1 {[%clk 0:02:38]}  Rad8 {[%clk 0:01:55]} 14. Bd3 {[%clk 0:02:30]}  Qh5 {[%clk 0:01:53]} 15. Be4 {[%clk 0:02:17]}  Rfe8 {[%clk 0:01:50]} 16. Nd2 {[%clk 0:02:17]}  Qxh2# {[%clk 0:01:45]} 0-1


[Site "https://www.chess.com"]

[Event "Titled Tuesday Blitz June 20 Early 2023"]
[White "Krishnan, Varun"]
[Black "Begunov, Konstantin"]
[WhiteFideId "5054508"]
[BlackFideId "4118510"]
[WhiteElo "2570"]
[BlackElo "1993"]
[Result "0-1"]
[Round "5"]
[TimeControl "180+2"]
[Date "2023.06.20"]
[WhiteClock "0:00:01"]
[BlackClock "0:00:14"]
[Board "114"]

1. d4 {[%clk 0:02:40]}  d5 {[%clk 0:02:58]} 2. c4 {[%clk 0:02:39]}  c6 {[%clk 0:02:58]} 3. Nc3 {[%clk 0:02:39]}  Nf6 {[%clk 0:02:58]} 4. e3 {[%clk 0:02:39]}  a6 {[%clk 0:02:58]} 5. Nf3 {[%clk 0:02:39]}  Bg4 {[%clk 0:02:58]} 6. h3 {[%clk 0:02:37]}  Bxf3 {[%clk 0:02:58]} 7. Qxf3 {[%clk 0:02:37]}  e6 {[%clk 0:02:58]} 8. Bd3 {[%clk 0:02:34]}  Be7 {[%clk 0:02:52]} 9. O-O {[%clk 0:02:33]}  O-O {[%clk 0:02:52]} 10. b3 {[%clk 0:02:32]}  Nbd7 {[%clk 0:02:49]} 11. Bb2 {[%clk 0:02:31]}  Re8 {[%clk 0:02:49]} 12. e4 {[%clk 0:02:30]}  dxe4 {[%clk 0:02:49]} 13. Nxe4 {[%clk 0:02:29]}  Nxe4 {[%clk 0:02:48]} 14. Bxe4 {[%clk 0:02:28]}  Nf6 {[%clk 0:02:47]} 15. Bc2 {[%clk 0:02:26]}  Qa5 {[%clk 0:02:46]} 16. Rfe1 {[%clk 0:02:19]}  Ba3 {[%clk 0:02:42]} 17. Re5 {[%clk 0:02:03]}  Qb4 {[%clk 0:02:25]} 18. Bc3 {[%clk 0:01:48]}  Qf8 {[%clk 0:02:16]} 19. Rae1 {[%clk 0:01:16]}  Bb4 {[%clk 0:02:13]} 20. Bxb4 {[%clk 0:01:13]}  Qxb4 {[%clk 0:02:14]} 21. Rg5 {[%clk 0:01:13]}  Qxe1+ {[%clk 0:02:11]} 22. Kh2 {[%clk 0:01:11]}  h6 {[%clk 0:01:40]} 23. Rg3 {[%clk 0:01:08]}  Kf8 {[%clk 0:01:38]} 24. Qf4 {[%clk 0:01:07]}  Rad8 {[%clk 0:01:32]} 25. Rd3 {[%clk 0:00:53]}  Qe4 {[%clk 0:01:22]} 26. Qc7 {[%clk 0:00:47]}  Rd7 {[%clk 0:01:18]} 27. Qb6 {[%clk 0:00:47]}  Red8 {[%clk 0:01:10]} 28. d5 {[%clk 0:00:45]}  cxd5 {[%clk 0:00:59]} 29. cxd5 {[%clk 0:00:40]}  Qe5+ {[%clk 0:00:51]} 30. g3 {[%clk 0:00:34]}  Nxd5 {[%clk 0:00:50]} 31. Qc5+ {[%clk 0:00:30]}  Kg8 {[%clk 0:00:50]} 32. Rd4 {[%clk 0:00:21]}  g6 {[%clk 0:00:37]} 33. Rh4 {[%clk 0:00:18]}  Kg7 {[%clk 0:00:35]} 34. Qc4 {[%clk 0:00:17]}  Rc7 {[%clk 0:00:33]} 35. Qd3 {[%clk 0:00:16]}  Rc3 {[%clk 0:00:32]} 36. Qd2 {[%clk 0:00:16]}  g5 {[%clk 0:00:22]} 37. Re4 {[%clk 0:00:15]}  Qf6 {[%clk 0:00:20]} 38. h4 {[%clk 0:00:15]}  Rdc8 {[%clk 0:00:19]} 39. Bd1 {[%clk 0:00:14]}  Qg6 {[%clk 0:00:17]} 40. Rd4 {[%clk 0:00:12]}  Nf6 {[%clk 0:00:16]} 41. Kg2 {[%clk 0:00:07]}  gxh4 {[%clk 0:00:16]} 42. Rxh4 {[%clk 0:00:06]}  h5 {[%clk 0:00:16]} 43. Qd4 {[%clk 0:00:06]}  R3c5 {[%clk 0:00:15]} 44. Be2 {[%clk 0:00:05]}  Rd5 {[%clk 0:00:15]} 45. Qe3 {[%clk 0:00:05]}  Rcc5 {[%clk 0:00:14]} 46. Rb4 {[%clk 0:00:03]}  Re5 {[%clk 0:00:14]} 47. Qd2 {[%clk 0:00:03]}  b5 {[%clk 0:00:14]} 48. Rd4 {[%clk 0:00:02]}  Rcd5 {[%clk 0:00:14]} 49. Bf3 {[%clk 0:00:02]}  Rxd4 {[%clk 0:00:14]} 50. Qxd4 {[%clk 0:00:02]}  Rf5 {[%clk 0:00:14]} 51. Qe3 {[%clk 0:00:02]}  Qg5 {[%clk 0:00:14]} 52. Qe2 {[%clk 0:00:02]}  h4 {[%clk 0:00:15]} 53. g4 {[%clk 0:00:02]}  Re5 {[%clk 0:00:14]} 54. Qd3 {[%clk 0:00:02]}  Qf4 {[%clk 0:00:15]} 55. Be2 {[%clk 0:00:01]}  Nxg4 {[%clk 0:00:14]} 56. Bf3 {[%clk 0:00:01]}  Nf6 {[%clk 0:00:14]} 57. Kf1 {[%clk 0:00:01]}  Rf5 {[%clk 0:00:14]} 58. Be2 {[%clk 0:00:01]}  Qxf2# {[%clk 0:00:14]} 0-1


[Site "https://www.chess.com"]